Cogmind - Beta 13 @@@ ROGUE MODE // 2024.04.20 @ 10:48:58 Player: Olafz Result: Destroyed by Y-45 Defender with Heavy Assault Rifle Performance ------------- Evolutions (1) 500 Regions Visited (4) 800 Robots Destroyed (32) 160 Value Destroyed (901) 901 Prototype IDs (1) 20 Alien Tech Used (0) 0 Bonus (0) 0 TOTAL SCORE: 2381 Bonus ------- None Cogmind --------- Core Integrity 0/400 Matter 205/300 Energy 265/265 System Corruption 3% Temperature Warning (317) Movement Treading (160) Location -9/Storage Parts ------- > --- POWER (1) -------- Improved Ion Engine > --- PROPULSION (2) --- Light Treads Light Treads > --- UTILITY (4) ------ Large Storage Unit Signal Interpreter Core Shielding Utility Shielding > --- WEAPON (2) ------- Advanced Beam Cannon Heavy Assault Rifle > --- INVENTORY (15) --- Improved Ion Engine Improved Ion Engine Light Treads Light Treads Light Treads High-capacity Storage Unit Visual Processing Unit Light Armor Plating Beam Rifle Beam Rifle Heavy Assault Rifle Heavy Assault Rifle Autogun Peak State ------------ > --- POWER ------------ Improved Ion Engine > --- PROPULSION ------- Light Treads Light Treads > --- UTILITY ---------- Large Storage Unit Signal Interpreter Core Shielding Utility Shielding > --- WEAPON ----------- Advanced Beam Cannon Heavy Assault Rifle > --- INVENTORY -------- Improved Ion Engine Improved Ion Engine Light Treads Light Treads Light Treads High-capacity Storage Unit Visual Processing Unit Light Armor Plating Beam Rifle Beam Rifle Heavy Assault Rifle Heavy Assault Rifle Autogun [Rating: 15] Favorites ----------- Power Light Ion Engine Engine Light Ion Engine Propulsion Aluminum Leg Treads Light Treads Leg Aluminum Leg Utility Heat Sink Device Heat Sink Storage Large Storage Unit Processor Signal Interpreter Protection Utility Shielding Weapon EM Shotgun Energy Gun EM Shotgun Energy Cannon Advanced Beam Cannon Ballistic Gun Heavy Assault Rifle Build | -11 -10 -10 -9 -9 ------- Run | Yrd Mat Min Mat Sto Slots Evolved 2 | . . . 2 . Power . | . . . . . Propulsion . | . . . . . Utility 2 | . . . 2 . Weapon . | . . . . . Parts Attached 34 | . 13 . 17 4 Power 4 | . 3 . 1 . Engine 4 | . 3 . 1 . Core . | . . . . . Reactor . | . . . . . Propulsion 11 | . 3 . 5 3 Treads 5 | . . . 2 3 Leg 6 | . 3 . 3 . Wheel . | . . . . . Hover . | . . . . . Flight . | . . . . . Utility 9 | . 4 . 5 . Device 2 | . 2 . . . Storage 3 | . 2 . 1 . Processor 1 | . . . 1 . Hackware . | . . . . . Protection 3 | . . . 3 . Artifact . | . . . . . Weapon 10 | . 3 . 6 1 Energy Gun 4 | . 3 . 1 . Energy Cannon 4 | . . . 3 1 Ballistic Gun 2 | . . . 2 . Ballistic Cannon . | . . . . . Launcher . | . . . . . Special Weapon . | . . . . . Impact Weapon . | . . . . . Slashing Weapon . | . . . . . Piercing Weapon . | . . . . . Special Melee Weapon . | . . . . . Unidentified Prototypes 1 | . . . 1 . Parts Lost 13 | . 4 2 7 . Power 3 | . 2 . 1 . Propulsion 3 | . . . 3 . Utility 2 | . 1 . 1 . Weapon 5 | . 1 2 2 . Highest Loss Streak 5 | . 3 2 5 . To Critical Strikes . | . . . . . Average Slot Usage (%) 94 | . 99 97 78 100 Engine 11 | . 14 14 4 11 Treads 3 | . . . 6 22 Leg 22 | . 28 28 11 . Device 10 | . 13 14 6 . Storage 12 | . 14 14 9 11 Processor 3 | . . . 10 11 Protection 5 | . . . 15 22 Energy Gun 18 | . 24 25 4 . Energy Cannon 2 | . . . 6 11 Ballistic Gun 3 | . 3 . 3 11 Naked Turns . | . . . . . Heaviest Build 50 | 10 50 30 36 36 Greatest Support 40 | 20 20 20 40 40 Greatest Overweight (x) 6 | . 2 1 6 1 Average Overweight (x) . | . . 1 . . Largest Inventory Capacity 20 | . 20 15 15 15 Average Capacity 13 | . 11 15 13 15 Most Carried 13 | . 9 9 9 13 Average Carried 6 | . 6 7 5 9 Final Capacity 15 | 8 15 15 15 15 Final Carried 13 | 6 7 9 7 13 Class Distribution -------------------- 84% | Mutant 15% | Scavenger-Mutant Dominant Class ---------------- Mutant | -10/Materials Mutant | -10/Mines Mutant | -9/Materials Scavenger-Mutant | -9/Storage Resources | -11 -10 -10 -9 -9 ----------- Run | Yrd Mat Min Mat Sto Matter Collected 516 | 200 142 . 124 50 Remotely . | . . . . . Salvage Created 1249 | . 832 12 191 214 Parts 80 | . 50 3 13 14 Haulers Intercepted 1 | . 1 . . . Recyclers Shooed 3 | . 3 . . . Parts Field Recycled . | . . . . . Retrieved Matter . | . . . . . Parts Self-Destructed . | . . . . . Prevented . | . . . . . Kills | -11 -10 -10 -9 -9 ------- Run | Yrd Mat Min Mat Sto Combat Hostiles Destroyed 25 | . 16 . 5 4 Guns 14 | . 14 . . . Cannons 8 | . . . 4 4 AOE 1 | . 1 . . . Classes Destroyed 8 | . 7 . 1 . Worker 2 | . 1 1 . . Hauler 1 | . 1 . . . Recycler 1 | . 1 . . . Operator 1 | . 1 . . . Watcher 2 | . 2 . . . Swarmer 5 | . 3 . 2 . Grunt 13 | . 13 . . . Sentry 7 | . . . 3 4 Best Kill Streak 3 | . 3 1 2 1 Combat Bots Only 3 | . 3 . 2 1 Max Kills in Single Turn 2 | . 2 1 1 1 Gunslinging . | . . . . . Exploded 1 | . 1 . . . Melee . | . . . . . Uniques/NPCs Destroyed . | . . . . . Combat | -11 -10 -10 -9 -9 -------- Run | Yrd Mat Min Mat Sto Hostile Shots Fired 199 | . 71 6 97 25 Missed 36 | . 13 1 16 6 Damage Taken 2090 | . 684 215 906 285 Core 612 | . 164 43 355 50 Absorbed by Shields . | . . . . . Redirected to Shielding 60 | . . . 47 13 Core Remaining (%) 58 | 100 . 17 . . Volleys Fired 87 | . 54 1 19 13 Largest 2 | . 2 2 2 2 Hottest 113 | . 90 90 113 91 Shots Fired 154 | . 102 2 24 26 Gun 131 | . 102 2 14 13 Cannon 23 | . . . 10 13 Launcher . | . . . . . Special . | . . . . . Kinetic 45 | . 32 . . 13 Thermal 49 | . 26 . 10 13 Explosive . | . . . . . Electromagnetic 60 | . 44 2 14 . Robot Hit Streak 11 | . 11 . 10 8 Robot Miss Streak 5 | . 4 5 2 2 Penetration Max . | . . . . . Secondary Targets 2 | . 2 . . . Max Gunslinging Chain 1 | . 1 . . . Shots Hit Robots 109 | . 74 . 19 16 Core Hits 52 | . 38 2 6 6 Critical Kills . | . . . . . Critical Parts Destroyed 2 | . 1 . . 1 Critical Strikes 2 | . 1 . . 1 Destroy 2 | . 1 . . 1 Melee Attacks . | . . . . . Impact . | . . . . . Slashing . | . . . . . Piercing . | . . . . . Sneak Attacks . | . . . . . Combat Hostiles . | . . . . . Follow-up Attacks . | . . . . . Damage Inflicted 1750 | . 1104 19 336 291 Guns 1179 | . 910 19 141 109 Cannons 369 | . . . 187 182 Explosions 194 | . 194 . . . Melee . | . . . . . Ramming 8 | . . . 8 . Kinetic 291 | . 182 . . 109 Thermal 774 | . 405 . 187 182 Explosive . | . . . . . Electromagnetic 677 | . 517 19 141 . Impact . | . . . . . Slashing . | . . . . . Piercing . | . . . . . Highest Corruption 3 | . . . 3 3 Average Corruption 2 | . . . 2 3 Corruption Purged . | . . . . . Corruption Blocked . | . . . . . Effects 5 | . . . 1 4 Message Errors 2 | . . . . 2 Matter Fused 1 | . . . . 1 Heat Flow Errors 1 | . . . . 1 Data Loss (minor) 1 | . . . 1 . Overload Shots . | . . . . . Overflow Damage 27 | . 18 . 9 . Projectiles 9 | . . . 9 . Explosions 18 | . 18 . . . Melee . | . . . . . Knockbacks . | . . . . . Impact . | . . . . . Kinetic . | . . . . . Secondary . | . . . . . Self-Inflicted Damage 51 | . 51 . . . Shots 2 | . 2 . . . Rammed 3 | . . . 3 . Targets Rammed 7 | . . . 7 . Kicked 4 | . . . 4 . Crushed . | . . . . . Highest Temperature 324 | . 120 . 57 324 Average Temperature 63 | . 33 . 26 144 Received Heat Transfer 585 | . 306 . 162 117 Effects 1 | . . . . 1 Matter Decay 1 | . . . . 1 Siege Activations . | . . . . . Robots Corrupted 2 | . 1 . 1 . Combat Hostiles 2 | . 1 . 1 . Parts Fried 4 | . 4 . . . Impact Corruptions . | . . . . . Robots Melted . | . . . . . Combat Hostiles . | . . . . . Parts Melted 1 | . 1 . . . Heat Transferred 1391 | . 725 . 333 333 Parts Sabotaged . | . . . . . Parts Stolen . | . . . . . Parts Stripped . | . . . . . Power Chain Reactions 3 | . 3 . . . Alert | -11 -10 -10 -9 -9 ------- Run | Yrd Mat Min Mat Sto Peak Influence 359 | . 359 82 154 165 Initial 62 | . . 62 24 . Average 135 | . 202 62 67 81 Maximum Alert Level 1 | . 1 . . . Low Security (%) 71 | . 43 100 100 100 Level 1 28 | . 56 . . . Level 2 . | . . . . . Level 3 . | . . . . . Level 4 . | . . . . . Level 5 . | . . . . . High Security . | . . . . . Max Security . | . . . . . Squads Dispatched 6 | . 6 . . . Investigation 3 | . 3 . . . Extermination . | . . . . . Reinforcement 3 | . 3 . . . Assault . | . . . . . Garrison . | . . . . . Intercept . | . . . . . Searches Triggered . | . . . . . Construction Impeded . | . . . . . Haulers Reinforced . | . . . . . Active Scanning Responses . | . . . . . Cargo Convoy Interrupts . | . . . . . Stealth | -11 -10 -10 -9 -9 --------- Run | Yrd Mat Min Mat Sto Distress Signals 1 | . . . 1 . Communications Jammed . | . . . . . Distress Signals . | . . . . . Times Spotted 61 | . 25 18 13 5 Peak Tracking Total 16 | . 3 16 7 4 Tactical Retreats 4 | . . . 4 . Traps | -11 -10 -10 -9 -9 ------- Run | Yrd Mat Min Mat Sto Traps Triggered 3 | . . . 2 1 Indirectly . | . . . . . Trap Hack Attempts . | . . . . . Triggered . | . . . . . Disarmed . | . . . . . Reprogrammed . | . . . . . Reused . | . . . . . Traps Extracted . | . . . . . Installed . | . . . . . Triggered . | . . . . . Machines | -11 -10 -10 -9 -9 ---------- Run | Yrd Mat Min Mat Sto Machines Disabled 1 | . 1 . . . Max in Single Turn 1 | . 1 . . . Machines Repaired . | . . . . . Machines Dismantled . | . . . . . Machines Sabotaged . | . . . . . Overloaded Fab Kills . | . . . . . Hacking | -11 -10 -10 -9 -9 --------- Run | Yrd Mat Min Mat Sto Machines Accessed 5 | . 4 . 1 . Terminals 4 | . 3 . 1 . Fabricators . | . . . . . Repair Stations 1 | . 1 . . . Recycling Units . | . . . . . Scanalyzers . | . . . . . Garrison Access . | . . . . . Total Hacks 13 | . 12 . 1 . Successful 2 | . 1 . 1 . Failed 11 | . 11 . . . Catastrophic 4 | . 4 . . . Database Lockouts . | . . . . . Manual 11 | . 10 . 1 . Terminals 11 | . 10 . 1 . Fabricators . | . . . . . Repair Stations 2 | . 2 . . . Recycling Units . | . . . . . Scanalyzers . | . . . . . Garrison Access . | . . . . . Terminal Hacks 1 | . . . 1 . Unreport Threat 1 | . . . 1 . Fabricator Hacks . | . . . . . Repair Station Hacks 1 | . 1 . . . Scan Component 1 | . 1 . . . Recycling Unit Hacks . | . . . . . Scanalyzer . | . . . . . Garrison Access Hacks . | . . . . . Unauthorized Hacks . | . . . . . Terminals . | . . . . . Fabricators . | . . . . . Repair Stations . | . . . . . Recycling Units . | . . . . . Scanalyzers . | . . . . . Garrison Access . | . . . . . Data Cores Recovered . | . . . . . Used . | . . . . . Hacking Detections 4 | . 4 . . . Full Trace Events 3 | . 3 . . . Feedback Events . | . . . . . Feedback Blocked . | . . . . . Robot Schematics Acquired . | . . . . . Robots Built . | . . . . . Authchips . | . . . . . Time . | . . . . . Total Robot Build Rating . | . . . . . Part Schematics Acquired . | . . . . . Parts Built . | . . . . . Authchips . | . . . . . Time . | . . . . . Total Part Build Rating . | . . . . . Parts Repaired . | . . . . . Time . | . . . . . Parts Recycled . | . . . . . Recycled Matter . | . . . . . Retrieved Matter . | . . . . . Retrieved Components . | . . . . . Parts Scanalyzed . | . . . . . Part Schematics Acquired . | . . . . . Parts Damaged . | . . . . . Bothacking | -11 -10 -10 -9 -9 ------------ Run | Yrd Mat Min Mat Sto Used RIF Installer . | . . . . . Robots Hacked . | . . . . . Non-combat . | . . . . . Combat . | . . . . . Robot Hacks Applied . | . . . . . Relay Couplers Released . | . . . . . Fabnet Peak Effective % . | . . . . . Robots Rewired . | . . . . . Allies Hacked . | . . . . . Hacks Repelled . | . . . . . Allies | -11 -10 -10 -9 -9 -------- Run | Yrd Mat Min Mat Sto Total Allies . | . . . . . Largest Group . | . . . . . Highest-Rated Group . | . . . . . Highest-Rated Ally . | . . . . . Total Orders . | . . . . . Ally Attacks . | . . . . . Total Damage . | . . . . . Kills . | . . . . . Allies Corrupted . | . . . . . Allies Melted . | . . . . . Intel | -11 -10 -10 -9 -9 ------- Run | Yrd Mat Min Mat Sto Robot Analysis Total . | . . . . . Derelict Logs Recovered . | . . . . . Drone Launches . | . . . . . Drone Recoveries . | . . . . . Exploration | -11 -10 -10 -9 -9 ------------- Run | Yrd Mat Min Mat Sto Turns Passed 2003 | . 1011 399 419 174 Spaces Moved 1018 | 1 527 206 206 78 Core 63 | . . . 63 . Treads 146 | . . . 68 78 Legs 809 | 1 527 206 75 . Wheels . | . . . . . Hover . | . . . . . Flight . | . . . . . Fastest Speed 50 | 120 120 190 50 160 Average Speed 159 | 120 153 190 145 161 Slowest Speed 350 | 120 260 190 350 240 Overloaded Moves . | . . . . . Propulsion Burnouts . | . . . . . Robots Hopped . | . . . . . Cave-ins Triggered . | . . . . . Exploration Rate (%) 36 | 1 80 67 23 12 Regions Visited 4 Branch Regions 2 Pre-discovered Areas . | . . . . . Known Exits Taken 1 | . . . 1 . Unknown Exits Taken 3 | 1 1 1 . . Scrap Searched 1 | . . 1 . . Spaces Dug . | . . . . . Terrain Destroyed 8 | . 8 . . . Melee . | . . . . . Projectile . | . . . . . AOE 8 | . 8 . . . Terrain Rammed . | . . . . . Walls Destroyed . | . . . . . Machines Disabled . | . . . . . Actions | -11 -10 -10 -9 -9 --------- Run | Yrd Mat Min Mat Sto Total 1229 | . 635 212 283 99 Wait 54 | . 24 4 26 . Move 1014 | . 526 205 205 78 Hop . | . . . . . Pick Up 19 | . 8 2 5 4 Fast Attach 13 | . 5 . 6 2 Attach 11 | . 3 . 8 . Detach 2 | . 1 . 1 . Swap 10 | . 5 . 3 2 Drop 12 | . 9 . 3 . Fire 87 | . 54 1 19 13 Melee . | . . . . . Ram 3 | . . . 3 . Kick 4 | . . . 4 . Crush . | . . . . . Escape Stasis . | . . . . . Rewire . | . . . . . Trap . | . . . . . Miscellaneous . | . . . . . Route ------- -11/Scrapyard -10/Materials (discovered 3 exits: *Mat x2 / [*Min]) -10/Mines (discovered 2 exits: *Mat x2) -9/Materials -9/Storage History --------- Turn | Location | Event 1 | -11/Scrapyard | Discovered new exit (range 0) 1 | -11/Scrapyard | Entered Materials 124 | -10/Materials | Discovered new exit (range 7) 264 | -10/Materials | Lost 3 parts (1p1u1w) 301 | -10/Materials | Build established: Mutant 321 | -10/Materials | Discovered new exit (range 4) 352 | -10/Materials | Core integrity fell below 50% 913 | -10/Materials | Discovered new exit (range 9) 1012 | -10/Materials | Entered Mines 1351 | -10/Mines | Discovered new exit (range 10) 1380 | -10/Mines | Assembled infested the area 1380 | -10/Mines | Discovered new exit (range 11) 1383 | -10/Mines | Core integrity fell below 20% 1385 | -10/Mines | Assisted by a Guerilla fighting off Assembled 1411 | -10/Mines | Entered Materials 1411 | -9/Materials | Evolved 2 slots: Utility x2 1504 | -9/Materials | Discovered new exit (range 15) 1640 | -9/Materials | Core integrity fell below 50% 1655 | -9/Materials | Core integrity fell below 20% 1673 | -9/Materials | Lost 5 parts (2n1u2w) 1815 | -9/Materials | Identified exit to Storage 1830 | -9/Materials | Entered Storage 1991 | -9/Storage | Build established: Scavenger-Mutant 2004 | -9/Storage | Destroyed by Y-45 Defender with Heavy Assault Rifle Last Messages --------------- Acquired Hvy. Assault Rifle. K-01 Serf collects debris. Acquired Beam Rifle. K-01 Serf collects debris. U08M7PZ2 S2B>I=8R3NU8O,FV#C ZX, K-01 Serf collects debris. Y-45 Defender destroyed. K-01 Serf collects debris. System corrupted: Matter fused (-5). Acquired 50 matter. Y-45 Defender destroyed. Acquired Imp. Ion Engine. Acquired Autogun. System corrupted: Heat flow error (+207). Critical hit (Burn: +37). Y-45 Defender suffers critical hit (Destroy). Destroyed Hvy. Assault Rifle. Y-45 Defender destroyed. Overheating: Matter decay (-61). K-01 Serf collects debris. Map ----- +----------------------------------------------------+ | ???# #????????????????????????????????? | | ???# #????????????????????????????????? | | ???# #????????????????????????????????? | | ???# #????????????????????????????????? | | ???# #????????????????????????????????? | | ???# #????????????????????????????????? | | ???# #????????????????????????????????? | | ???# ^^#????????????????????????????????? | | ???# #????????????????????????????????? | | ???# #????????????????????????????????? | | ???# #????????????????????????????????? | | ???# #????????????????????????????????? | | ???# #????????????????????????????????? | | ???# #????????????????????????????????? | | ??## ##???????????????????????????????? | | ??# ########+##?????????????????????? | | ??# !% ??????????????????? | | ??# ??????????????????? | | ??# ??????????????????? | | ??# #############???????????????????? | | ??## ##??#####????????????????????????? | | ???# #####"T"#######??????????????????? | | ???# # T !%#??????????????????? | | ???# # [[| !##??????????????????? | | ???# # [|| [#???????????????????? | | ???# %kY [||@ #???????????????????? | | ???# #= #???????????????????? | | ???# ##############???????????????????? | | ???# #????????????????????????????????? | | ??## ##???????????????????????????????? | | ??# #???????????????????????????????? | | ??# !%! #???????????????????????????????? | | ??# = #???????????????????????????????? | | ??# #???????????????????????????????? | | ??# #???????????????????????????????? | | ??#######???????????????????????????????? | | ????????????????????????????????????????? | | ????????????????????????????????????????? | | ????????????????????????????????????????? | | ????????????????????????????????????????? | | ????????????????????????????????????????? | | ????????????????????????????????????????? | | ????????????????????????????????????????? | | ????????????????????????????????????????? | | ????????????????????????????????????????? | | ????????????????????????????????????????? | | ????????????????????????????????????????? | | ????????????????????????????????????????? | | ????????????????????????????????????????? | | ????????????????????????????????????????? | +----------------------------------------------------+ Best States ------------- Heat Dissipation 38 Energy Generation 12 Energy Capacity 265 Matter Stores 300 Matter Capacity 300 Sight Range 16 Robot Scan Range 14 Terrain Scan Density 10 Core Shielding 20 Utility Shielding 33 Evasion (%) 55 Recoil Reduction 2 Item Schematics ----------------- None Robot Schematics ------------------ None Fabricated ------------ Nothing Alien Tech Used ----------------- None Achievements -------------- None Challenges ------------ None Game ------ Seed AerolevTrackerDriver Manual? 0 Play Time 00:12:52 Cumulative 70.8 hours Start 2024.04.20 @ 10:36:59 End 2024.04.20 @ 10:48:58 Sessions 1 Manual Loads 0 Difficulty Rogue Special Mode None Game No. 150 Rogue 148 Adventurer 2 Explorer 0 Win Type - Total 1 Types 1/0/0/0/0/0/0/0/0 Lore% 46 Gallery% 46 Achievement% 36 Wizard Run 0 Options --------- Layout 0 ASCII 0 Keyboard 1 Movement Numpad Keybinds 1 Fullscreen 2 Font 18/SmallcapsGlow Map View 76x50 Zoom Use 0% Tactical HUD 1 Map Filters NONE Filters NONE Steam 1 RUN: 8f93a80e-b15a-4998-adfb-3d8c32cfed77